bitfinex/quotes_ETHUSD_20240915
["timestamp","ask_amount","ask_price","bid_price","bid_amount"]
[1726376871852,0.8670431,2424.4,2424.3,1.76829613]
[1726376872351,0.8670431,2424.4,2424.3,2.9632058]
[1726376874147,0.8670431,2424.4,2424.3,1.5537752]
[1726376875210,0.8670431,2424.4,2424.3,0.35886553]
[1726376875558,0.8670431,2424.4,2424.3,1.19488691]
[1726376875846,0.8670431,2424.4,2424.3,1.55372574]
[1726376878852,0.8670431,2424.4,2424.3,0.35883883]
[1726376879161,0.8670431,2424.4,2424.3,1.19488601]
[1726376879452,0.8670431,2424.4,2424.3,1.55372864]
[1726376881851,3.3321431,2424.4,2424.3,0.35884263]
[1726376882064,3.3321431,2424.4,2424.3,1.19499797]
[1726376882370,3.3321431,2424.4,2424.3,1.5538406]
[1726376884769,3.3321431,2424.4,2424.3,0.35884263]
[1726376885125,3.3321431,2424.4,2424.3,1.19514736]
[1726376885466,3.3321431,2424.4,2424.3,1.55398999]
[1726376888626,3.3321431,2424.4,2424.3,0.35884263]
[1726376889167,3.3321431,2424.4,2424.3,1.55401844]
[1726376889340,3.3321431,2424.4,2424.3,1.19517581]
[1726376889557,3.3321431,2424.4,2424.3,1.55402608]
[1726376889885,3.76265362,2424.4,2424.3,1.55402608]
[1726376892358,3.76265362,2424.4,2424.3,0.35885027]
[1726376892769,3.76265362,2424.4,2424.1,5.5345606]
[1726376892967,0.8674777,2424.3,2424.1,5.5345606]
[1726376893180,0.8674777,2424.3,2424.2,0.73552734]
[1726376899145,0.8674777,2424.3,2424.1,5.5345606]
[1726376899392,0.8674777,2424.3,2424.1,1.4094306]
[1726376899552,0.8674777,2424.3,2424.2,0.73543867]
[1726376899987,3.76265362,2424.4,2424.2,0.73543867]
[1726376900191,4.94508873,2424.4,2424.3,0.73543867]
[1726376900395,5.093918,2424.4,2424.3,0.73543867]
[1726376900551,6.8230692,2424.4,2424.3,0.73543867]
[1726376900753,5.093918,2424.4,2424.3,0.73543867]
[1726376901153,4.94876129,2424.4,2424.3,0.73543867]
[1726376902285,4.94876129,2424.4,2424.3,1.09430422]
[1726376902690,4.94872377,2424.4,2424.3,1.09430422]
[1726376902855,4.94872648,2424.4,2424.3,0.35886555]
[1726376903195,4.94872648,2424.4,2424.3,0.73543017]
[1726376903516,15.51190563,2424.4,2424.3,0.35887318]
[1726376903814,2.4911,2424.2,2423.8,1.4094306]
[1726376904085,0.86750384,2424.0,2423.9,0.73562735]
[1726376904987,3.35860384,2424.0,2423.9,0.73562735]
[1726376906096,3.35860384,2424.0,2423.8,1.4094306]
[1726376906260,2.4911,2424.0,2423.9,0.71518548]
[1726376906882,3.35860384,2424.0,2423.9,0.71518548]
[1726376907095,2.4911,2424.0,2423.9,0.71518548]
[1726376909389,2.4911,2424.0,2423.8,1.4094306]
[1726376917130,2.4911,2424.0,2423.9,0.35923689]
[1726376919499,7.38316384,2424.2,2423.9,0.35923689]
[1726376929269,0.86750384,2424.1,2423.9,0.35923689]
[1726376929624,7.38316384,2424.2,2423.9,0.35923689]
[1726376931356,0.86750384,2424.1,2423.9,0.35923689]
[1726376931757,7.38316384,2424.2,2423.9,0.35923689]
[1726376932152,0.86750384,2424.1,2423.9,0.35923689]
[1726376943208,0.86750384,2424.0,2423.9,0.35923689]
[1726376943405,0.86750384,2424.0,2423.9,1.07424126]
[1726376943712,0.86750384,2424.0,2423.9,0.35923689]
[1726376944006,0.86750384,2424.0,2423.9,1.07423933]
[1726376948473,0.86750384,2424.0,2423.9,8.49449999]
[1726376948676,0.86750384,2424.1,2424.0,4.12541]
[1726376948873,0.86750384,2424.2,2424.0,8.06888278]
[1726376949106,0.86747617,2424.2,2424.1,0.71500244]
[1726376949268,1.30125577,2424.3,2424.1,1.07326983]
[1726376949475,0.86752544,2424.2,2424.1,2.75916739]
[1726376949823,0.86752544,2424.2,2424.1,4.04081825]
[1726376950298,0.86752544,2424.2,2424.1,3.47399566]
[1726376951180,0.86752544,2424.2,2424.1,4.04079437]
[1726376951506,0.86752544,2424.3,2424.1,4.04079437]
[1726376951709,0.86752544,2424.3,2424.2,0.71482827]
[1726376952013,0.86752544,2424.3,2424.2,1.07303813]
[1726376952577,0.86752544,2424.3,2424.2,2.48246873]
[1726376952777,0.86752544,2424.3,2424.2,6.60753873]
[1726376953084,0.86752544,2424.4,2424.2,6.60753873]
[1726376953301,0.86752544,2424.4,2424.2,5.89271046]
[1726376953784,0.86752544,2424.4,2424.3,1.16150869]
[1726376953988,0.86752544,2424.4,2424.3,1.51958086]
[1726376954216,0.86752544,2424.5,2424.3,1.51960696]
[1726376954390,0.86752544,2424.5,2424.4,2.57096539]
[1726376954591,0.86752544,2424.5,2424.4,2.92898005]
[1726376955104,0.86752544,2424.5,2424.4,2.21418941]
[1726376959302,0.90684504,2424.6,2424.4,2.21421877]
[1726376959530,0.90684504,2424.6,2424.4,1.76744526]
[1726376970615,0.86752544,2424.5,2424.4,1.76744526]
[1726376970815,0.90684504,2424.6,2424.4,1.76744526]
[1726376973434,0.90684504,2424.6,2424.4,1.4094306]
[1726376974368,0.86752544,2424.5,2424.4,1.4094306]
[1726376981162,0.86752544,2424.5,2424.4,1.76730783]
[1726376983329,0.86752544,2424.5,2424.4,2.21412995]
[1726376983529,0.86752544,2424.5,2424.4,2.21413256]
[1726376984973,0.86752544,2424.5,2424.4,1.76730783]
[1726376985177,0.86752544,2424.5,2424.4,1.85625448]
[1726376985471,0.86752544,2424.5,2424.4,1.76730019]
[1726376985828,0.86752544,2424.5,2424.4,1.4094306]
[1726376986532,0.86752544,2424.5,2424.4,1.76730019]
[1726376986759,0.86752544,2424.5,2424.4,1.4094306]
[1726376987164,0.86752544,2424.5,2424.2,1.4094306]
[1726376987372,0.86752544,2424.5,2424.0,5.5347106]
[1726376987373,3.17642544,2424.4,2424.0,5.5347106]
[1726376987538,3.17642544,2424.4,2424.1,4.84024867]
[1726376987753,0.86752544,2424.3,2424.1,4.12524]
[1726376988553,0.86752544,2424.3,2424.2,1.4094306]
[1726376991462,1.30125577,2424.3,2424.2,1.4094306]
[1726376992146,1.30125577,2424.3,2424.2,1.76741523]
[1726376999371,0.86688308,2424.3,2424.2,1.76741523]
[1726377000598,1.30125577,2424.3,2424.2,1.76741523]
[1726377002620,0.86684074,2424.3,2424.2,1.76741523]
[1726377006125,0.86684074,2424.3,2424.2,4.12431523]
[1726377008233,0.86684074,2424.3,2424.2,0.35798463]
[1726377008537,0.86684074,2424.3,2424.2,1.4094306]
[1726377008719,0.86684074,2424.3,2424.2,1.76740759]
[1726377026641,0.86684074,2424.3,2424.2,8.28357759]
[1726377030378,0.86684074,2424.3,2424.2,6.87414699]
[1726377030675,0.86684074,2424.3,2424.2,8.28357759]
[1726377031939,0.86684074,2424.4,2424.2,8.85009837]
[1726377032143,0.86684074,2424.4,2424.2,8.28357759]
[1726377033105,0.86684074,2424.3,2424.2,8.28357759]
[1726377033597,0.86684074,2424.4,2424.2,8.28357759]
[1726377041165,0.86684074,2424.4,2424.2,5.89247759]
[1726377042309,0.86684074,2424.3,2424.2,0.35797699]
[1726377044112,3.63055577,2424.4,2424.2,0.35797699]
[1726377044320,0.86725336,2424.3,2424.0,7.9872106]
[1726377044504,0.86725336,2424.3,2424.1,0.56661469]
[1726377044698,0.86725336,2424.3,2424.0,7.9872106]
[1726377044919,0.86725336,2424.3,2424.1,0.56661075]
[1726377045116,0.86725336,2424.3,2424.0,7.9872106]
[1726377045409,0.86725336,2424.3,2424.1,0.56660933]
[1726377045610,0.86725336,2424.3,2424.0,7.9872106]
[1726377045827,0.86725336,2424.3,2424.1,0.56667183]
[1726377046009,0.86725336,2424.3,2424.0,7.9872106]
[1726377046212,0.86725336,2424.3,2424.1,0.56668556]
[1726377046412,0.86725336,2424.3,2424.0,7.9872106]
[1726377046742,0.86725336,2424.3,2424.1,1.13338328]
[1726377046932,0.86725336,2424.3,2424.1,0.56669087]
[1726377047745,0.86725336,2424.3,2424.0,5.5347106]
[1726377047947,0.86725336,2424.3,2424.1,0.56683942]
[1726377048104,0.86725336,2424.3,2424.0,5.5347106]
[1726377048304,0.86725336,2424.3,2424.1,0.56684242]
[1726377048545,0.86725336,2424.3,2424.0,5.5347106]
[1726377048747,0.86725336,2424.3,2424.1,0.56683843]
[1726377048956,0.86725336,2424.3,2424.0,5.5347106]
[1726377049156,0.86725336,2424.3,2424.1,0.56683895]
[1726377049454,0.86725336,2424.3,2424.0,5.5347106]
[1726377049655,0.86725336,2424.3,2424.1,0.56683651]
[1726377049959,0.86725336,2424.3,2424.0,5.5347106]
[1726377050163,0.86725336,2424.3,2424.1,0.56683955]
[1726377050315,0.86725336,2424.3,2424.0,5.5347106]
[1726377050515,0.86725336,2424.3,2424.1,0.56683937]
[1726377050716,0.86725336,2424.3,2424.0,5.5347106]
[1726377050917,0.86725336,2424.3,2424.1,0.56683801]
[1726377051134,0.86725336,2424.3,2424.0,5.5347106]
[1726377051390,0.86725336,2424.3,2424.1,0.56683661]
[1726377051597,0.86725336,2424.3,2424.0,5.5347106]
[1726377051799,1.30125577,2424.4,2424.2,3.8619306]
[1726377052099,1.30125577,2424.4,2424.2,1.4094306]
[1726377052100,0.86740286,2424.3,2424.2,1.4094306]
[1726377053495,0.81740286,2424.3,2424.2,1.4094306]
[1726377058081,0.81740286,2424.3,2424.2,1.97619526]
[1726377058613,0.81740286,2424.3,2424.2,6.10126526]
[1726377058797,1.30125577,2424.4,2424.2,1.97619526]
[1726377059022,1.30125577,2424.4,2424.2,1.4094306]
[1726377062315,1.30125577,2424.5,2424.2,1.4094306]
[1726377063504,0.86745017,2424.3,2424.2,1.4094306]
[1726377063868,0.86745017,2424.3,2424.2,1.97616955]
[1726377064067,0.0393196,2424.6,2424.5,11.13832]
[1726377064265,0.0393196,2424.6,2424.5,13.00350021]
[1726377064478,0.0393196,2424.6,2424.5,13.00329135]
[1726377064777,0.0393196,2424.6,2424.5,13.43631397]
[1726377064927,0.0393196,2424.6,2424.5,17.56087397]
[1726377065520,1.77432729,2425.3,2424.5,17.56087397]
[1726377065521,0.0393196,2425.3,2425.1,6.46274]
[1726377065725,0.0393196,2425.3,2425.1,7.8721706]
[1726377066828,0.0393196,2425.3,2424.8,2.3392]
[1726377067078,2.4927,2425.2,2424.9,4.12373]
[1726377067228,2.4927,2425.2,2424.9,5.92052692]
[1726377067667,2.4927,2425.2,2425.0,4.1237]
[1726377067827,2.4927,2425.2,2425.1,0.38722895]
[1726377068453,2.4927,2425.2,2424.9,5.5331606]
[1726377068767,2.4927,2425.2,2425.1,1.4094306]
[1726377069290,2.4927,2425.2,2425.1,1.79665955]
[1726377081925,2.4927,2425.2,2425.1,0.38722895]
[1726377082117,2.4927,2425.2,2424.9,5.5331606]
[1726377082459,2.4927,2425.2,2425.0,0.3873108]
[1726377082460,2.74590196,2425.2,2425.0,0.3873108]
[1726377082872,2.74590196,2425.2,2424.7,9.6576606]
[1726377083027,2.74590196,2425.2,2425.1,0.38725152]
[1726377083227,2.74590196,2425.2,2424.7,9.6576606]
[1726377083453,2.74590196,2425.2,2425.1,0.38725152]
[1726377083624,2.74590196,2425.2,2424.7,9.6576606]
[1726377083826,2.74590196,2425.2,2425.1,0.38725152]
[1726377084068,2.74590196,2425.2,2424.7,9.6576606]
[1726377084270,2.74590196,2425.2,2425.1,0.38725152]
[1726377084429,2.74590196,2425.2,2424.7,9.6576606]
[1726377084952,2.74590196,2425.2,2424.8,0.38742939]
[1726377085358,2.74590196,2425.2,2424.7,9.6576606]
[1726377085566,2.74590196,2425.2,2424.9,0.3873701]
[1726377085873,2.74590196,2425.2,2424.8,0.38742939]
[1726377086044,2.74590196,2425.2,2425.0,0.3873108]
[1726377086241,2.74590196,2425.2,2424.9,0.3873701]
[1726377086454,2.74590196,2425.2,2425.1,0.38725152]
[1726377086658,2.74590196,2425.2,2425.0,0.3873108]
[1726377086861,2.74590196,2425.2,2425.1,0.38725152]
[1726377087232,2.74590196,2425.2,2424.7,9.6576606]
[1726377087436,2.74590196,2425.2,2425.1,0.38725152]
[1726377087669,2.74590196,2425.2,2424.7,9.6576606]
[1726377087877,2.74590196,2425.2,2425.1,0.38725152]
[1726377088067,2.74590196,2425.2,2424.7,9.6576606]
[1726377088250,2.74590196,2425.2,2425.1,0.38725152]
[1726377088469,2.74590196,2425.2,2424.7,9.6576606]
[1726377088946,2.74590196,2425.2,2424.8,0.38742939]
[1726377089448,2.74590196,2425.2,2424.7,9.6576606]
[1726377089647,2.4927,2425.2,2424.9,1.7968007]
[1726377089846,2.4927,2425.2,2424.9,1.4094306]
[1726377090046,2.4927,2425.2,2425.0,0.3873108]
[1726377102381,3.35722801,2425.2,2425.0,0.3873108]
[1726377105551,0.86452801,2425.1,2425.0,0.3873108]
[1726377109572,1.30125577,2425.1,2425.0,0.3873108]
[1726377122727,1.30125577,2425.1,2425.0,1.10122362]
[1726377125231,1.30125577,2425.1,2425.0,0.3873108]
[1726377125419,1.30125577,2425.1,2425.0,1.10158776]
[1726377127446,4.22770769,2425.2,2425.0,1.10158776]
[1726377127650,1.30128878,2425.1,2425.0,0.3873108]
[1726377132264,8.93096077,2425.1,2425.0,0.3873108]
[1726377132423,4.03370769,2425.1,2425.0,0.3873108]
[1726377132628,4.03370769,2425.1,2424.7,4.12422]
[1726377132977,0.86751194,2424.8,2424.7,4.12422]
[1726377133125,0.86751194,2424.8,2424.7,4.67357754]
[1726377134424,0.86751194,2424.9,2424.7,4.67357754]
[1726377134643,0.86751194,2424.9,2424.7,4.12422]
[1726377134859,0.86751194,2424.8,2424.7,4.12422]
[1726377135032,0.86751194,2424.9,2424.7,6.08302191]
[1726377135245,0.86751194,2424.9,2424.7,5.5336506]
[1726377137366,0.86751194,2424.8,2424.7,5.5336506]
[1726377137567,0.86751194,2424.8,2424.7,6.08299856]
[1726377137873,0.86751194,2424.8,2424.7,5.5336506]
[1726377138054,0.86751194,2424.8,2424.7,6.08299565]
[1726377138458,0.86751194,2424.8,2424.7,5.5336506]
[1726377138843,0.86751194,2424.8,2424.7,6.08300786]
[1726377139034,0.86751194,2424.8,2424.7,5.5336506]
[1726377139646,0.86751194,2424.9,2424.7,6.08300284]
[1726377139846,0.86751194,2424.8,2424.7,5.5336506]
[1726377140958,0.86751194,2424.8,2424.7,6.08288986]
[1726377141140,0.86751194,2424.8,2424.7,5.5336506]
[1726377142175,0.86751194,2424.8,2424.7,5.91670882]
[1726377145881,0.86751194,2424.9,2424.7,5.91670882]
[1726377147056,1.30126791,2425.0,2424.7,5.91670882]
[1726377149453,0.86723598,2424.9,2424.7,5.91670882]
[1726377162208,0.86723598,2424.9,2424.7,5.91660882]
[1726377165925,0.86723598,2424.9,2424.8,0.44629339]
[1726377166431,0.86723598,2424.9,2424.8,0.82928481]
[1726377167911,0.86723598,2424.9,2424.8,0.38299142]
[1726377168101,0.86723598,2424.9,2424.7,5.5335506]
[1726377168299,0.86723598,2424.9,2424.8,0.38299142]
[1726377168511,0.86723598,2424.9,2424.7,5.5335506]
[1726377168717,0.86723598,2424.9,2424.8,0.38299142]
[1726377168917,0.86723598,2424.9,2424.7,9.6576706]
[1726377169115,0.86723598,2424.9,2424.8,0.38299142]
[1726377169351,0.86723598,2424.9,2424.7,9.6576706]
[1726377169650,0.86723598,2424.9,2424.8,0.38299142]
[1726377170031,0.86723598,2424.9,2424.7,5.5335506]
[1726377170345,0.86723598,2424.9,2424.8,0.38298395]
[1726377170542,0.86723598,2424.9,2424.7,9.6576806]
[1726377170741,0.86723598,2424.9,2424.8,0.38298395]
[1726377170906,0.86723598,2424.9,2424.7,9.6576806]
[1726377171336,0.86723598,2424.9,2424.8,0.38298395]
[1726377171534,0.86723598,2424.9,2424.7,9.6576806]
[1726377171938,0.86723598,2424.9,2424.8,0.38298395]
[1726377172246,0.86723598,2424.9,2424.7,5.5335506]
[1726377172445,0.86723598,2424.9,2424.8,0.38298395]
[1726377172751,0.86723598,2424.9,2424.7,5.5335506]
[1726377172946,0.86723598,2424.9,2424.7,9.6576806]
[1726377173251,0.86723598,2424.9,2424.8,0.38298395]
[1726377173656,0.86723598,2424.9,2424.7,5.5335506]
[1726377173811,0.86723598,2424.9,2424.8,0.38298395]
[1726377174211,0.86723598,2424.9,2424.7,5.5335506]
[1726377174536,0.86723598,2424.9,2424.8,0.38298395]
[1726377174738,0.86732389,2424.9,2424.7,5.5335506]
[1726377175242,0.86732389,2424.9,2424.8,0.38298395]
[1726377175660,0.86732389,2424.9,2424.7,9.6576806]
[1726377175832,0.86732389,2424.9,2424.8,0.38298395]
[1726377176353,0.86732389,2424.9,2424.7,5.5335506]
[1726377176559,0.86732389,2424.9,2424.8,0.38298395]
[1726377176761,0.86732389,2424.9,2424.7,5.5335506]
[1726377176923,0.86732389,2424.9,2424.8,0.38298395]
[1726377177131,0.86732389,2424.9,2424.7,5.5335506]
[1726377177442,0.86732389,2424.9,2424.8,0.38298395]
[1726377177859,0.86732389,2424.9,2424.7,5.5335506]
[1726377178656,0.86732389,2424.9,2424.8,7.02941112]
[1726377178858,1.30098584,2425.1,2424.8,7.02941112]
[1726377178859,0.86732389,2425.0,2424.8,7.02941112]
[1726377179017,0.86732389,2425.0,2424.9,1.4094306]
[1726377179690,0.86732389,2425.0,2424.9,5.5333106]
[1726377186777,0.86732389,2425.0,2424.9,1.4094306]
[1726377186947,3.29692389,2425.0,2424.9,1.4094306]
[1726377187146,3.29692389,2425.0,2424.9,1.79228419]
[1726377187584,0.86732389,2425.0,2424.9,1.79228419]
[1726377187782,0.86732389,2425.0,2424.9,5.91616419]
[1726377188882,0.86732389,2425.0,2424.9,8.17156419]
[1726377189980,0.86732389,2425.0,2424.9,1.79228419]
[1726377190151,0.86732389,2425.0,2424.9,5.91616419]
[1726377216833,0.86732389,2425.0,2424.9,1.79228419]
[1726377224260,0.86732389,2425.0,2424.9,2.34122962]
[1726377224851,0.86732389,2425.0,2424.9,1.79228419]
[1726377225023,0.86732389,2425.0,2424.9,2.34123051]
[1726377228372,0.86732389,2425.0,2424.9,1.79228419]
[1726377228671,0.86732389,2425.0,2424.9,6.46499739]
[1726377229370,0.86732389,2425.0,2424.9,5.91616419]
[1726377229530,0.86732389,2425.0,2424.9,6.4649628]
[1726377232071,0.86732389,2425.0,2424.9,6.46493024]
[1726377232225,0.86732389,2425.0,2424.9,6.46493744]
[1726377238866,0.86732389,2425.0,2424.9,6.46505212]
[1726377240176,1.30098584,2425.1,2425.0,4.12371]
[1726377240177,0.86732389,2425.1,2425.0,4.12371]
[1726377240392,0.86732389,2425.1,2425.0,4.67259793]
[1726377240578,0.86732389,2425.1,2425.0,5.05528001]
[1726377241224,0.86732389,2425.1,2425.0,5.05520441]
[1726377241708,0.86732389,2425.1,2425.0,5.05520691]
[1726377243204,0.86732389,2425.1,2425.0,4.50639208]
[1726377243576,0.86732389,2425.1,2425.0,5.05508192]
[1726377244177,0.86732389,2425.1,2425.0,4.50639208]
[1726377245506,0.86732389,2425.2,2425.0,4.50639208]
[1726377245681,0.86732389,2425.2,2425.1,1.4094306]
[1726377245875,0.86732389,2425.2,2425.1,1.79201973]
[1726377250823,1.30098584,2425.2,2425.1,0.38258913]
[1726377251030,3.73538584,2425.2,2425.1,0.38258913]
[1726377251188,3.73538584,2425.2,2424.9,9.6569806]
[1726377251533,0.86701412,2425.1,2424.9,9.6569806]
[1726377252586,0.86701412,2425.1,2424.9,4.12376]
[1726377253098,0.86701412,2425.0,2424.9,4.12376]
[1726377253900,4.1239,2424.9,2424.5,2.27491464]
[1726377254105,3.3014937,2424.8,2424.4,4.99010404]
[1726377254410,0.8670937,2424.7,2424.5,5.5339706]
[1726377255421,3.3014937,2424.8,2424.5,5.5339706]
[1726377256041,0.8670937,2424.7,2424.5,5.5339706]
[1726377257526,2.4344,2424.8,2424.5,5.5339706]
[1726377257527,3.3014937,2424.8,2424.5,5.5339706]
[1726377262127,3.3014937,2424.8,2424.6,0.38288187]
[1726377263554,2.4344,2424.8,2424.6,0.38288187]
[1726377267647,3.3499937,2425.0,2424.7,5.5336306]
[1726377267952,3.3499937,2425.0,2424.8,0.3829316]
[1726377268155,3.3499937,2425.0,2424.7,4.1242]
[1726377268370,3.3499937,2425.0,2424.9,0.3828723]
[1726377268522,3.3499937,2425.0,2424.7,4.1242]
[1726377268523,3.81509165,2425.0,2424.7,4.1242]
[1726377268723,3.81509165,2425.0,2424.9,0.3828723]
[1726377269026,3.81509165,2425.0,2424.7,4.1242]
[1726377269229,2.94799795,2425.0,2424.9,0.3828723]
[1726377269430,2.94799795,2425.0,2424.8,0.3829316]
[1726377269626,2.4829,2425.0,2424.9,0.3828723]
[1726377270029,2.4829,2425.0,2424.7,4.1242]
[1726377270234,2.4829,2425.0,2424.9,0.3828723]
[1726377270436,3.81509165,2425.0,2424.8,0.3829316]
[1726377270650,3.81509165,2425.0,2424.7,4.1242]
[1726377270651,3.81509165,2425.0,2424.9,0.3828723]
[1726377271026,3.81509165,2425.0,2424.7,4.1242]
[1726377271226,2.94799795,2425.0,2424.9,0.3828723]
[1726377271421,2.94799795,2425.0,2424.8,0.3829316]
[1726377271627,2.4829,2425.0,2424.9,0.3828723]
[1726377272056,3.3499937,2425.0,2424.7,4.1242]
[1726377272366,3.3499937,2425.0,2424.8,0.3829316]
[1726377272663,3.3499937,2425.0,2424.7,4.1242]
[1726377272965,3.3499937,2425.0,2424.8,0.3829316]
[1726377273158,3.3499937,2425.0,2424.7,4.1242]
[1726377273159,4.40089443,2425.0,2424.7,4.1242]
[1726377273325,4.40089443,2425.0,2424.9,0.3828723]
[1726377273526,3.3499937,2425.0,2424.7,4.1242]
[1726377273739,3.3499937,2425.0,2424.9,0.3828723]
[1726377273926,3.3499937,2425.0,2424.7,4.1242]
[1726377274145,3.3499937,2425.0,2424.9,0.3828723]
[1726377274467,2.4829,2425.0,2424.7,5.5336306]
[1726377274621,2.4829,2425.0,2424.9,0.38302564]
[1726377274821,2.4829,2425.0,2424.8,0.38308494]
[1726377275022,2.4829,2425.0,2424.9,0.38302564]
[1726377275425,2.4829,2425.0,2424.7,5.5336306]
[1726377275627,2.4829,2425.0,2424.9,0.38302564]
[1726377275839,2.4829,2425.0,2424.8,0.38308494]
[1726377276041,2.4829,2425.0,2424.9,0.38302564]
[1726377276364,2.4829,2425.0,2424.7,5.5336306]
[1726377276671,2.4829,2425.0,2424.9,0.38302564]
[1726377276902,2.4829,2425.0,2424.8,0.38308494]
[1726377277026,2.4829,2425.0,2424.9,0.38302564]
[1726377277467,2.4829,2425.0,2424.7,5.5336306]
[1726377277667,2.4829,2425.0,2424.9,0.38302564]
[1726377277824,2.4829,2425.0,2424.8,0.38308494]
[1726377278129,2.4829,2425.0,2424.9,0.37035086]
[1726377278327,2.4829,2425.0,2424.7,5.5336306]
[1726377278570,3.3499937,2425.0,2424.9,0.37035086]
[1726377278752,3.3499937,2425.0,2424.6,8.2486]
[1726377278753,3.81509165,2425.0,2424.6,8.2486]
[1726377278930,3.81509165,2425.0,2424.9,0.37035086]
[1726377279130,3.81509165,2425.0,2424.6,4.12428]
[1726377279442,3.81509165,2425.0,2424.9,0.37035086]
[1726377279963,3.81509165,2425.0,2424.6,4.12427]
[1726377280178,3.81509165,2425.0,2424.9,0.37035086]
[1726377280369,3.81509165,2425.0,2424.6,4.12427]
[1726377280669,3.81509165,2425.0,2424.9,0.37035086]
[1726377280871,3.81509165,2425.0,2424.6,4.12427]
[1726377281078,3.81509165,2425.0,2424.9,0.37035086]
[1726377281284,3.81509165,2425.0,2424.6,4.12427]
[1726377281734,3.81509165,2425.0,2424.7,0.37046946]
[1726377289413,0.8670937,2424.9,2424.7,0.37046946]
[1726377289790,3.81509165,2425.0,2424.7,0.37046946]
[1726377291455,0.8670937,2424.9,2424.7,0.37046946]
[1726377291963,3.81509165,2425.0,2424.7,0.37046946]
[1726377292464,0.8670937,2424.9,2424.7,0.37046946]
[1726377293403,0.8670937,2424.9,2424.8,0.43445956]
[1726377293567,1.79106045,2424.9,2424.8,0.80488845]
[1726377294086,1.79106045,2424.9,2424.8,0.37042889]
[1726377294403,1.79106045,2424.9,2424.6,4.12427]
[1726377294572,0.8670937,2424.9,2424.8,0.37042889]
[1726377294776,0.8670937,2424.9,2424.6,4.12427]
[1726377294976,0.8670937,2424.9,2424.8,0.37042889]
[1726377295154,0.8670937,2424.9,2424.6,4.12427]
[1726377295500,0.8670937,2424.9,2424.8,0.37042889]
[1726377295724,1.59256132,2424.9,2424.8,0.37042889]
[1726377295896,1.59256132,2424.9,2424.6,4.12427]
[1726377296098,1.59256132,2424.9,2424.7,0.37048819]
[1726377298309,3.3378937,2424.8,2424.5,1.4094306]
[1726377298621,3.3378937,2424.8,2424.6,0.37055497]
[1726377305206,0.8670937,2424.8,2424.6,0.37055497]
[1726377306634,0.8670937,2424.8,2424.7,1.4094306]
[1726377306956,0.8670937,2424.8,2424.7,1.77996741]
[1726377307808,0.8670937,2424.8,2424.7,4.25926741]
[1726377308009,0.8670937,2424.8,2424.7,4.95451669]
[1726377309239,0.8670937,2424.8,2424.7,4.25926741]
[1726377309449,0.8670937,2424.8,2424.7,1.77996741]
[1726377309848,0.8670937,2424.8,2424.7,2.47518846]
[1726377311743,0.8670937,2424.8,2424.7,1.06575786]
[1726377312839,0.8670937,2424.8,2424.7,1.06577818]
[1726377313153,0.8670937,2424.8,2424.7,0.37053681]
[1726377313331,1.30098584,2424.9,2424.7,0.69524046]
[1726377313538,0.86747802,2424.8,2424.5,4.75421464]
[1726377313751,0.86747802,2424.7,2424.5,8.87874464]
[1726377313918,0.86747802,2424.7,2424.6,1.56428382]
[1726377316365,0.86747802,2424.7,2424.5,8.87874464]
[1726377316536,0.86747802,2424.7,2424.6,1.56427526]
[1726377319634,0.86747802,2424.8,2424.6,1.56427526]
[1726377319835,0.86747802,2424.8,2424.7,0.69523345]
[1726377320162,1.30098584,2424.9,2424.7,0.69523345]
[1726377320361,2.47996422,2424.9,2424.8,0.69523345]
[1726377320533,1.30098584,2424.9,2424.8,0.69523345]
[1726377321665,8.32006778,2425.0,2424.8,0.69523345]
[1726377321996,8.32006778,2425.0,2424.6,0.86905221]
[1726377322268,0.86750362,2424.7,2424.5,8.0132606]
[1726377322425,0.86750362,2424.7,2424.6,1.56429012]
[1726377323760,0.86750362,2424.7,2424.6,1.56432262]
[1726377327686,0.86750362,2424.7,2424.6,2.10730986]
[1726377330690,0.86750362,2424.7,2424.5,3.8887306]
[1726377331162,0.86750362,2424.7,2424.6,0.54297652]
[1726377331358,0.86750362,2424.7,2424.6,0.69527219]
[1726377332088,0.86750362,2424.7,2424.6,1.23824546]
[1726377332387,0.86750362,2424.7,2424.6,0.69527219]
[1726377332546,0.86750362,2424.7,2424.6,1.23824156]
[1726377333411,0.86750362,2424.7,2424.6,1.23824527]
[1726377333613,0.86750362,2424.7,2424.6,0.69527219]
[1726377333797,0.86750362,2424.7,2424.6,1.23824673]
[1726377333987,0.86750362,2424.7,2424.6,0.69527219]
[1726377334183,7.7749643,2424.7,2424.4,0.86548404]
[1726377335206,4.12439,2424.6,2424.4,0.86548404]
[1726377335408,2.3929,2424.5,2424.4,0.86548404]
[1726377335616,3.17041343,2424.5,2424.4,0.86548404]
[1726377337175,3.17041343,2424.5,2424.4,1.19884653]
[1726377338314,3.17041343,2424.5,2424.4,0.33336249]
[1726377338613,4.90584882,2424.5,2424.2,0.69558497]
[1726377338778,0.86772896,2424.4,2424.3,0.33342181]
[1726377338977,0.86772896,2424.4,2424.1,1.4094306]
[1726377339178,0.86772896,2424.4,2424.2,1.02907565]
[1726377339400,0.86772896,2424.4,2424.2,0.33348114]
[1726377341175,3.26062896,2424.5,2424.2,0.33348114]
[1726377341414,4.42441519,2424.5,2424.2,0.33348114]
[1726377343710,4.42441519,2424.5,2424.2,2.78368114]
[1726377343878,3.26062896,2424.5,2424.2,2.78368114]
[1726377347435,2.3929,2424.5,2424.2,2.78368114]
[1726377347799,4.12484,2424.4,2424.2,0.33348114]
[1726377348137,2.3817,2424.3,2423.9,6.57576]
[1726377352208,2.3817,2424.3,2424.0,0.33379544]
[1726377355237,2.3817,2424.3,2424.0,1.74322604]
[1726377355551,2.3817,2424.3,2424.0,0.33379544]
[1726377364725,2.3817,2424.3,2423.8,9.6607106]
[1726377364726,2.3817,2424.3,2423.9,4.12558]
[1726377364958,2.3817,2424.3,2424.1,0.3337287]
[1726377365155,2.3817,2424.3,2424.0,0.33378804]
[1726377365334,2.3817,2424.3,2424.2,0.33366937]
[1726377365662,3.1191269,2424.3,2424.2,0.33366937]
[1726377365839,3.1191269,2424.3,2423.9,0.43475385]
[1726377366020,2.3817,2424.3,2424.0,0.33378804]
[1726377366329,2.3817,2424.3,2424.0,0.43476007]
[1726377366550,2.3817,2424.3,2424.1,0.3337287]
[1726377366954,2.3817,2424.3,2423.8,9.6607206]
[1726377367430,2.3817,2424.3,2423.9,0.33384738]
[1726377372184,6.50661,2424.3,2423.9,0.33384738]
[1726377372354,7.37433896,2424.3,2423.9,0.33384738]
[1726377373246,6.50661,2424.3,2423.9,0.33384738]
[1726377373447,7.37433896,2424.3,2423.9,0.33384738]
[1726377376587,0.86772896,2424.2,2423.9,0.33384738]
[1726377381911,0.86772896,2424.2,2423.9,4.45939738]
[1726377384281,3.24942896,2424.3,2423.9,4.45939738]
[1726377384626,0.86772896,2424.2,2423.9,4.45939738]
[1726377388766,0.86772896,2424.2,2423.9,5.32586095]
[1726377389834,0.86772896,2424.2,2423.9,0.33384738]
[1726377390354,2.2717,2424.1,2423.9,0.33384738]
[1726377390733,3.13942896,2424.1,2423.9,0.33384738]